bitfinex/quotes_ETHUSD_20251018
["timestamp","ask_amount","ask_price","bid_price","bid_amount"]
[1760760589794,1.728,3860.1,3859.4,0.4726]
[1760760589989,2.682,3860.2,3859.4,0.001]
[1760760590288,2.682,3860.2,3859.6,2.59092313]
[1760760590683,1.9268,3860.3,3859.6,2.59092313]
[1760760590855,1.9268,3860.3,3859.4,3.1496]
[1760760591063,0.4561,3860.2,3859.4,3.1496]
[1760760591270,0.4561,3860.2,3859.5,2.59095511]
[1760760591797,0.4561,3860.2,3859.6,2.59093917]
[1760760591964,0.4561,3860.2,3859.7,2.59086255]
[1760760592591,0.4561,3860.2,3859.6,2.59093216]
[1760760592893,0.1988,3860.3,3859.4,0.001]
[1760760592894,3.25902895,3860.0,3859.4,0.001]
[1760760593400,0.6846,3859.9,3859.4,0.001]
[1760760594189,0.2285,3859.9,3859.4,0.001]
[1760760594398,0.4561,3859.8,3859.4,0.001]
[1760760594695,0.2285,3859.9,3859.4,2.59207476]
[1760760594899,0.6846,3859.9,3859.4,2.59207476]
[1760760595270,0.6846,3859.9,3859.4,0.001]
[1760760595576,0.6846,3859.9,3859.4,2.59207334]
[1760760595976,3.25902895,3860.2,3859.4,2.59207334]
[1760760596176,3.25902895,3860.2,3859.5,2.59100303]
[1760760596596,0.6549,3860.3,3859.4,0.4726]
[1760760596794,0.6549,3860.3,3859.7,2.59081716]
[1760760597418,0.002,3860.0,3859.6,0.4716]
[1760760597774,0.002,3860.0,3859.6,3.06253352]
[1760760598205,0.002,3860.0,3859.4,2.59202497]
[1760760598404,0.002,3860.0,3859.5,2.59100655]
[1760760598704,0.002,3860.0,3859.4,0.001]
[1760760598902,0.002,3860.0,3859.6,2.59092925]
[1760760599610,0.002,3860.0,3859.5,2.59100102]
[1760760599816,0.4516,3860.0,3859.5,2.59100102]
[1760760600017,0.4516,3860.0,3859.4,0.001]
[1760760600215,0.002,3860.0,3859.5,2.671]
[1760760600522,0.6778,3859.9,3859.4,5.26302063]
[1760760600810,0.6778,3859.9,3859.5,2.59099683]
[1760760601510,0.002,3860.0,3859.4,2.672]
[1760760601683,0.002,3860.0,3859.9,2.59074069]
[1760760601889,0.002,3860.0,3859.9,2.61664809]
[1760760602204,0.002,3860.0,3859.9,3.06674809]
[1760760602375,0.002,3860.0,3859.9,3.04084069]
[1760760603004,0.002,3860.0,3859.9,3.16964069]
[1760760603205,0.002,3860.0,3859.9,3.12451869]
[1760760603607,0.002,3860.0,3859.9,5.79451869]
[1760760605499,0.002,3860.0,3859.9,0.1288]
[1760760605680,0.002,3860.0,3859.9,5.38854069]
[1760760605879,0.002,3860.0,3859.9,2.71954069]
[1760760606079,0.002,3860.0,3859.9,5.38754069]
[1760760606910,0.002,3860.0,3859.9,2.7968]
[1760760607281,0.002,3860.0,3859.9,5.38754069]
[1760760607909,0.002,3860.0,3859.9,5.38654069]
[1760760608513,0.002,3860.0,3859.9,5.85784069]
[1760760614219,0.002,3860.0,3859.9,7.58584069]
[1760760615650,0.002,3860.0,3859.4,2.59207076]
[1760760615651,4.10224355,3860.0,3859.4,0.001]
[1760760615826,3.48932895,3859.5,3859.4,0.001]
[1760760616236,5.65552895,3859.5,3859.4,0.001]
[1760760616588,8.24653814,3859.5,3859.4,0.001]
[1760760616796,11.50556709,3859.5,3859.4,0.001]
[1760760617001,14.21572848,3859.5,3859.4,0.001]
[1760760617529,2.59121061,3859.2,3859.1,0.001]
[1760760617715,7.57823956,3859.2,3859.1,0.001]
[1760760617920,8.01643956,3859.2,3859.1,0.001]
[1760760618316,2.59157422,3858.7,3858.2,0.89955565]
[1760760618538,5.19092895,3858.3,3858.2,0.89955565]
[1760760618743,8.21864399,3858.3,3858.2,0.89955565]
[1760760619322,4.95961504,3858.3,3858.2,0.89955565]
[1760760619933,4.95961504,3858.3,3856.1,0.003]
[1760760619934,1.728,3858.2,3856.1,0.0577]
[1760760620137,0.4359,3858.1,3856.1,0.003]
[1760760620339,1.728,3857.8,3856.1,0.003]
[1760760620523,1.728,3857.9,3856.1,2.59629342]
[1760760620725,1.728,3857.6,3856.1,2.59623109]
[1760760621014,0.6305,3857.8,3856.2,2.59321218]
[1760760621333,0.6305,3857.8,3856.3,2.59315917]
[1760760621334,0.4659,3857.7,3856.3,2.59315917]
[1760760621952,0.04518812,3857.5,3856.3,2.59315917]
[1760760622165,0.4659,3857.4,3856.3,2.59315917]
[1760760622446,0.4659,3857.4,3856.1,0.003]
[1760760622447,3.1319,3857.3,3856.4,2.59308895]
[1760760622644,2.666,3857.3,3856.4,2.59308895]
[1760760622844,0.4659,3857.2,3856.5,2.59301268]
[1760760623045,0.4659,3857.2,3856.6,2.59295553]
[1760760623252,0.51108842,3857.2,3856.6,2.59295553]
[1760760623417,0.51108842,3857.2,3856.4,0.02593092]
[1760760623752,0.51108842,3857.2,3856.8,2.59282073]
[1760760624048,0.04518842,3857.2,3856.3,0.4713]
[1760760624220,0.04518842,3857.2,3857.0,2.59268215]
[1760760624425,0.04518842,3857.2,3857.0,2.59263329]
[1760760624646,0.04518842,3857.2,3856.9,2.59274861]
[1760760624817,0.04518842,3857.2,3857.0,2.59263333]
[1760760625018,0.04518842,3857.2,3857.1,2.59262139]
[1760760625937,2.666,3857.3,3857.1,2.59262139]
[1760760626314,0.0451832,3857.7,3857.2,0.2161]
[1760760626545,0.0451832,3857.7,3857.6,2.59228535]
[1760760626735,1.6006,3858.3,3857.7,2.59221744]
[1760760626959,1.1347,3858.3,3858.0,2.59195952]
[1760760627332,1.6006,3858.3,3858.0,2.59195952]
[1760760627533,1.6006,3858.3,3857.9,2.59207887]
[1760760627733,1.6006,3858.3,3858.0,2.59199718]
[1760760627928,0.0451742,3858.4,3858.2,2.82278222]
[1760760628131,0.2169,3860.1,3858.3,0.02591815]
[1760760628329,0.1615,3861.0,3859.9,2.59074069]
[1760760628330,0.002,3860.0,3859.9,2.59074069]
[1760760628531,0.002,3860.0,3859.9,4.52694572]
[1760760628827,0.002,3860.0,3859.4,0.2151]
[1760760629228,0.002,3860.0,3859.9,2.59074069]
[1760760633459,0.002,3860.0,3859.9,3.02714069]
[1760760634541,0.002,3860.0,3859.9,2.59074069]
[1760760638347,0.002,3860.0,3859.9,2.71954069]
[1760760638569,0.437,3860.0,3859.9,2.71954069]
[1760760639045,0.437,3860.0,3859.0,2.666]
[1760760639046,0.437,3860.0,3859.1,0.2151]
[1760760639260,0.2185,3859.9,3859.6,2.59092702]
[1760760639471,0.2185,3859.9,3859.7,2.59087493]
[1760760639673,0.437,3860.0,3859.7,2.59087493]
[1760760639969,0.437,3860.0,3859.1,0.6515]
[1760760640173,0.437,3860.0,3859.6,2.5908895]
[1760760640575,0.437,3860.0,3859.1,0.6515]
[1760760640778,0.437,3860.0,3859.7,2.59087047]
[1760760643085,0.437,3860.0,3859.8,2.59079359]
[1760760643273,0.437,3860.0,3859.5,2.59100104]
[1760760643476,0.437,3860.0,3859.6,2.59094206]
[1760760643680,0.437,3860.0,3859.7,2.59086948]
[1760760643985,0.6676,3859.9,3859.7,2.59086948]
[1760760644193,0.6676,3859.9,3859.6,2.59088458]
[1760760644370,0.6676,3859.9,3859.5,2.59095122]
[1760760644685,0.6676,3859.9,3859.6,2.59093379]
[1760760645390,0.6676,3859.9,3859.7,2.59086518]
[1760760645980,0.2185,3859.9,3859.7,2.59086518]
[1760760646282,0.4491,3859.8,3859.7,2.59086518]
[1760760646467,0.2185,3859.9,3859.7,2.59086518]
[1760760647661,0.4491,3859.8,3859.7,2.59086518]
[1760760648192,0.2185,3859.9,3859.7,2.59086518]
[1760760648577,0.6676,3859.9,3859.7,2.59086518]
[1760760650095,0.2185,3859.9,3859.7,2.59086518]
[1760760650461,0.002,3860.0,3859.7,2.59086518]
[1760760651969,0.6703,3859.9,3859.7,2.59086518]
[1760760652170,0.1955,3859.9,3859.7,2.59086518]
[1760760652390,0.6675,3859.9,3859.7,2.59086518]
[1760760653230,0.002,3860.0,3859.7,2.59086518]
[1760760654774,0.002,3860.0,3859.6,0.1288]
[1760760655597,0.002,3860.0,3859.6,2.71969031]
[1760760656801,0.002,3860.0,3859.6,0.1288]
[1760760656974,0.002,3860.0,3859.1,0.2151]
[1760760656975,0.6675,3859.9,3859.1,0.2151]
[1760760657183,0.1288,3859.8,3859.1,0.1288]
[1760760657412,0.472,3859.7,3859.1,0.1288]
[1760760657586,0.51715851,3859.7,3859.1,0.1288]
[1760760660111,2.665,3859.6,3859.1,0.1288]
[1760760660311,2.665,3859.6,3859.1,2.72007651]
[1760760660466,2.665,3859.6,3859.5,2.59100919]
[1760760660668,2.665,3859.6,3859.5,3.05580919]
[1760760661183,2.665,3859.6,3859.4,2.59107588]
[1760760661474,2.665,3859.6,3859.4,2.59102495]
[1760760661672,2.665,3859.6,3859.5,2.59100919]
[1760760661907,2.665,3859.6,3859.5,3.05580919]
[1760760663306,0.002,3860.0,3859.9,2.59074069]
[1760760663608,0.002,3860.0,3859.9,3.05554069]
[1760760665511,0.002,3860.0,3859.9,3.08144809]
[1760760667189,0.002,3860.0,3859.9,3.05554069]
[1760760667801,0.002,3860.0,3859.9,3.08144809]
[1760760668314,0.002,3860.0,3859.9,4.80944809]
[1760760670404,0.002,3860.0,3859.9,7.47444809]
[1760760670610,0.002,3860.0,3859.9,7.57734069]
[1760760674628,0.002,3860.0,3859.9,7.57634069]
[1760760675186,0.002,3860.0,3859.9,4.91234069]
[1760760675394,0.002,3860.0,3859.9,7.60224809]
[1760760675685,0.002,3860.0,3859.9,4.91234069]
[1760760675882,0.002,3860.0,3859.9,7.11154069]
[1760760676083,0.002,3860.0,3859.9,7.55334069]
[1760760677389,0.002,3860.0,3859.9,7.42454069]
[1760760682535,0.002,3860.0,3859.9,6.98274069]
[1760760683038,0.002,3860.0,3859.9,7.42454069]
[1760760686001,0.002,3860.8,3860.3,4.31847224]
[1760760686206,0.002,3860.8,3860.3,7.00737696]
[1760760686404,0.002,3860.8,3860.3,6.98147224]
[1760760686607,0.002,3860.8,3860.3,7.42327224]
[1760760687519,0.002,3860.8,3860.3,7.55207224]
[1760760690910,0.002,3860.8,3860.3,7.44147224]
[1760760693229,0.002,3860.8,3860.3,7.83287224]
[1760760698718,0.002,3860.8,3860.7,2.59020384]
[1760760699047,0.002,3860.8,3860.7,6.98020384]
[1760760699921,0.002,3860.8,3860.7,7.08402915]
[1760760700438,0.002,3860.8,3860.7,7.21195982]
[1760760700829,0.002,3860.8,3860.7,7.67195982]
[1760760701029,0.002,3860.8,3860.7,7.67282915]
[1760760701563,0.002,3861.1,3861.0,4.31800259]
[1760760701728,0.002,3861.1,3861.0,6.98000259]
[1760760701920,0.002,3861.1,3861.0,7.10880259]
[1760760703068,0.002,3861.1,3861.0,7.49820259]
[1760760703369,0.3914,3861.1,3861.0,7.49820259]
[1760760705232,0.002,3861.1,3861.0,7.49820259]
[1760760706859,0.002,3861.1,3861.0,7.36840259]
[1760760707169,0.002,3861.1,3861.0,7.82840259]
[1760760707557,0.002,3861.1,3861.0,7.36840259]
[1760760714578,0.002,3861.1,3861.0,7.62790259]
[1760760715086,1e-08,3861.2,3861.1,4.31793551]
[1760760715262,1e-08,3861.2,3861.1,4.34383486]
[1760760716348,1e-08,3861.2,3861.1,4.73323486]
[1760760716845,1e-08,3861.2,3861.1,4.86203486]
[1760760721211,1e-08,3861.2,3861.1,7.49613551]
[1760760721212,0.38940001,3861.2,3861.1,7.49613551]
[1760760721409,0.38940001,3861.2,3861.1,4.83613551]
[1760760721608,0.38940001,3861.2,3861.1,7.49613551]
[1760760724393,1e-08,3861.2,3861.1,7.49613551]
[1760760724591,1e-08,3861.2,3861.1,7.75563551]
[1760760728785,1e-08,3861.2,3861.1,7.97173551]
[1760760728988,1e-08,3861.2,3861.1,7.75563551]
[1760760733137,1e-08,3861.2,3861.1,8.21593551]
[1760760734334,1e-08,3861.2,3861.1,7.75563551]
[1760760738437,1e-08,3861.6,3861.5,4.31766722]
[1760760738604,1e-08,3861.6,3861.5,7.13036389]
[1760760738803,1e-08,3861.6,3861.5,7.10446722]
[1760760739340,1e-08,3861.6,3861.5,7.71086722]
[1760760740409,0.2185,3862.8,3862.3,2.58913082]
[1760760740610,0.2185,3862.8,3862.6,2.58892973]
[1760760741136,0.4037,3862.7,3862.6,2.80742973]
[1760760741926,0.4037,3862.7,3862.6,2.58892973]
[1760760744449,0.4037,3862.7,3862.6,2.99262973]
[1760760745525,0.4037,3862.7,3862.6,5.64962973]
[1760760745725,0.4037,3862.7,3862.6,0.4037]
[1760760746021,0.4037,3862.7,3862.1,2.97325687]
[1760760746225,0.4017,3862.6,3862.4,2.58906003]
[1760760746420,0.4017,3862.5,3862.4,2.58906003]
[1760760747845,0.4017,3862.5,3862.1,2.58921104]
[1760760748047,0.4017,3862.4,3862.1,2.58921104]
[1760760748251,0.4017,3862.3,3862.1,2.58921104]
[1760760748418,0.4017,3862.2,3862.1,2.58921104]
[1760760750447,0.4017,3862.2,3862.1,0.1288]
[1760760750655,0.4017,3862.2,3862.1,2.7180649]
[1760760751034,0.4017,3862.2,3862.1,0.1288]
[1760760752717,0.4017,3862.2,3862.1,2.7180649]
[1760760752935,0.4017,3862.2,3862.1,0.1288]
[1760760755848,0.4017,3862.2,3861.2,4.384]
[1760760755849,0.4017,3862.2,3861.2,2.58981163]
[1760760756024,0.2254,3861.3,3861.2,2.58986843]
[1760760756228,0.6202,3861.3,3861.2,2.58986843]
[1760760760760,0.6202,3861.3,3860.9,2.59005751]
[1760760760959,0.6202,3861.3,3860.8,0.001]
[1760760760960,0.3948,3861.2,3860.8,0.001]
[1760760761335,3.0508,3861.2,3860.8,0.001]
[1760760761734,3.15467573,3861.2,3860.8,0.001]
[1760760762739,7.47254416,3861.2,3860.8,0.001]
[1760760762945,7.51768796,3861.2,3860.8,0.001]
[1760760770737,4.53301953,3861.2,3860.8,0.001]
[1760760770942,4.92781953,3861.2,3860.8,0.001]
[1760760772647,7.51768796,3861.2,3860.8,0.001]
[1760760772886,4.92781953,3861.2,3860.8,0.001]
[1760760774584,4.53301953,3861.2,3860.8,0.001]
[1760760775765,4.48787573,3861.2,3860.8,0.001]
[1760760777049,2.75987573,3861.2,3860.8,0.001]
[1760760777266,2.75987573,3861.2,3860.9,0.4579]
[1760760777267,2.656,3861.2,3860.9,0.4579]
[1760760777606,4.384,3861.2,3860.9,0.4579]
[1760760777766,4.384,3861.2,3861.1,0.4589]
[1760760777962,4.42914122,3861.2,3861.1,0.4589]
[1760760779190,2.70114122,3861.2,3861.1,3.04883551]
[1760760779512,2.656,3861.7,3861.3,2.5897873]
[1760760779806,0.04513551,3861.6,3861.4,0.5924]
[1760760779969,2.656,3861.7,3861.4,0.5924]
[1760760781285,2.656,3861.7,3861.5,0.4636]
[1760760781695,2.656,3861.7,3861.4,0.1288]
[1760760781902,2.656,3861.7,3861.5,0.4636]
[1760760782411,2.656,3861.7,3861.4,2.71853154]
[1760760782585,2.656,3861.7,3861.6,0.4636]
[1760760782905,2.656,3861.7,3861.6,0.1288]
[1760760783420,2.656,3861.7,3861.6,0.5924]
[1760760784104,2.656,3861.7,3861.6,0.1288]
[1760760784270,2.656,3861.7,3861.6,0.5924]
[1760760784688,2.656,3861.7,3861.6,0.1288]
[1760760785973,3.0845,3861.7,3861.1,0.001]
[1760760788503,2.656,3861.7,3861.2,0.4455]
[1760760788880,2.656,3861.7,3861.1,0.001]
[1760760789105,2.656,3861.7,3861.1,2.59093182]
[1760760789290,0.04513676,3861.6,3861.1,2.59093182]
[1760760789491,0.04513676,3861.6,3861.2,2.58986774]
[1760760789802,2.656,3861.7,3861.2,0.4455]
[1760760789985,2.656,3861.7,3861.3,0.4455]
[1760760790185,2.656,3861.7,3861.1,2.59092585]
[1760760791402,2.656,3861.7,3861.2,2.58984887]
[1760760791797,2.656,3861.7,3861.2,3.03534887]
[1760760792103,2.656,3861.7,3861.2,0.4455]
[1760760793219,0.04513607,3861.6,3861.2,3.03536256]
[1760760793404,2.656,3861.7,3861.2,3.03536256]
[1760760794108,2.656,3861.7,3861.2,0.4455]
[1760760794308,2.656,3861.7,3861.3,0.4455]
[1760760794803,2.656,3861.7,3861.1,2.59092901]
[1760760795205,2.656,3861.7,3861.1,0.001]
[1760760795604,0.4322,3861.6,3861.1,0.001]
[1760760795978,2.656,3861.7,3861.3,0.1288]
[1760760796181,0.04513719,3861.5,3861.3,0.1288]
[1760760796379,0.4322,3861.4,3861.3,0.1288]
[1760760798709,0.4322,3861.4,3861.1,0.001]
[1760760798912,2.653,3861.3,3861.1,0.001]
[1760760799507,0.4322,3861.2,3861.1,0.001]
[1760760801702,2.653,3861.3,3861.1,0.001]
[1760760801901,0.4322,3861.2,3861.1,0.001]
[1760760802123,2.653,3861.3,3861.1,0.001]
[1760760802433,3.0852,3861.3,3861.1,0.001]
[1760760804534,2.653,3861.3,3861.1,0.001]
[1760760805099,0.04513719,3861.5,3861.1,0.001]
[1760760805304,2.653,3861.4,3861.2,0.4455]
[1760760806205,2.653,3861.4,3861.2,3.03536595]
[1760760806436,2.653,3861.4,3861.2,0.4455]
[1760760807805,2.653,3861.4,3861.1,2.71972422]
[1760760808002,2.653,3861.4,3861.1,3.16522422]
[1760760810234,2.653,3861.4,3861.1,0.1298]
[1760760810436,3.0852,3861.4,3861.1,0.1298]
[1760760810638,0.4322,3861.3,3861.1,0.1298]
[1760760812411,0.4322,3861.3,3860.8,0.001]
[1760760812412,1.728,3861.1,3860.8,0.001]
[1760760812611,1.9458,3860.9,3860.8,0.001]
[1760760813023,2.3841,3860.9,3860.8,0.001]
[1760760815950,2.4292507,3860.9,3860.8,0.001]
[1760760821563,1.9909507,3860.9,3860.8,0.001]
[1760760821963,0.0451507,3860.9,3860.8,0.001]
[1760760822314,0.1739507,3860.9,3860.8,0.001]
[1760760822646,0.1288,3860.9,3860.8,0.001]
[1760760824189,6.8228,3861.8,3860.8,0.4338]
[1760760824386,2.652,3861.7,3860.9,2.59006967]
[1760760824590,2.652,3861.7,3861.0,3.02278432]
[1760760825158,0.04513801,3861.6,3861.0,3.02278432]
[1760760825863,0.04513801,3861.6,3861.0,0.4328]
[1760760827498,0.04513801,3861.6,3861.0,3.02279805]
[1760760827702,0.04513801,3861.6,3861.0,0.4328]
[1760760828222,0.04513801,3861.6,3861.0,3.02280037]
[1760760828523,0.04513801,3861.6,3861.1,2.58989698]
[1760760829082,0.04513801,3861.6,3861.2,0.4328]
[1760760830585,0.04513801,3861.6,3861.3,0.4328]
[1760760830908,0.04513801,3861.6,3861.5,2.58966722]
[1760760831514,0.04513801,3861.6,3861.5,3.02246722]
[1760760832614,0.04513801,3861.6,3861.5,2.58966722]
[1760760833278,2.652,3861.7,3861.5,2.58966722]
[1760760833484,2.652,3861.7,3861.5,3.02246722]
[1760760834117,2.652,3861.7,3861.5,0.4328]
[1760760834595,2.652,3861.7,3861.5,3.0224621]
[1760760835193,2.652,3861.7,3861.6,2.58960016]
[1760760835395,2.652,3861.7,3861.6,3.02240016]
[1760760835608,2.652,3861.7,3861.5,2.58966196]
[1760760835811,2.652,3861.7,3861.5,3.02246196]
[1760760836314,2.654,3861.7,3861.6,2.58960016]
[1760760836907,2.654,3861.7,3861.5,3.02245904]
[1760760837133,2.654,3861.7,3861.1,0.001]
[1760760837134,3.88266522,3861.6,3861.1,0.001]
[1760760837289,3.25636522,3861.2,3861.1,0.001]
[1760760837626,5.90636522,3861.2,3861.1,0.001]
[1760760837926,6.31486522,3861.2,3861.1,0.001]
[1760760838106,3.0585,3861.2,3861.1,0.001]
[1760760838413,3.10364414,3861.2,3861.1,0.001]
[1760760840594,2.69514414,3861.2,3861.1,0.001]
[1760760840792,2.65,3861.2,3861.1,0.001]
[1760760842423,3.0585,3861.2,3861.1,0.001]
[1760760842731,2.65,3861.2,3861.1,0.001]
[1760760843928,3.0585,3861.2,3861.1,0.001]
[1760760844128,3.10364216,3861.2,3861.1,0.001]
[1760760844426,2.69514216,3861.2,3861.1,0.44]
[1760760844925,2.69514216,3861.2,3861.1,3.02993551]
[1760760845127,2.69514216,3861.2,3861.1,0.001]
[1760760845333,0.04514216,3861.2,3861.1,0.44]
[1760760845531,0.04514216,3861.2,3861.1,3.02993551]
[1760760845824,0.04514216,3861.2,3861.1,0.44]
[1760760846026,0.04514216,3861.2,3861.1,3.02993551]
[1760760847111,0.04514216,3861.2,3861.1,3.15873551]
[1760760848045,0.80240533,3861.2,3861.1,0.001]
[1760760848333,2.17424216,3861.2,3861.1,0.001]
[1760760849743,4.82324216,3861.2,3861.1,0.001]
[1760760853010,4.7781,3861.2,3861.1,0.001]
[1760760854611,4.82324578,3861.2,3861.1,0.001]
[1760760855127,2.69614578,3861.2,3861.1,0.001]
[1760760862554,2.651,3861.2,3861.1,0.001]
[1760760864464,13.95339887,3861.2,3861.1,0.001]
[1760760864763,11.09834371,3861.2,3861.1,0.001]
[1760760864962,10.74218054,3861.2,3861.1,0.001]
[1760760866047,10.84607677,3861.2,3861.1,0.001]
[1760760867342,11.5006781,3861.2,3861.1,0.001]
[1760760867743,11.90700673,3861.2,3861.1,0.001]
[1760760868242,11.8031105,3861.2,3861.1,0.001]
[1760760869142,12.53016573,3861.2,3861.1,0.001]
[1760760869341,4.31806967,3860.9,3860.8,0.001]
[1760760869554,7.9135249,3860.9,3860.8,0.001]
[1760760869761,7.9135249,3860.9,3860.4,0.001]
[1760760869762,4.31833803,3860.5,3860.4,0.001]
[1760760869942,11.23346775,3860.5,3860.4,0.001]
[1760760870148,11.69386775,3860.5,3860.4,0.001]
[1760760870553,12.10027007,3860.5,3860.4,0.001]
[1760760871342,4.6745683,3860.4,3859.6,0.001]
[1760760871766,5.1349683,3860.4,3859.6,0.001]
[1760760872973,5.23889828,3860.4,3859.6,0.001]
[1760760873272,4.46750149,3860.4,3859.6,0.001]
[1760760873460,7.11650149,3860.4,3859.8,0.4277]
[1760760874070,7.01257151,3860.4,3859.8,0.4277]
[1760760874778,7.01257151,3860.4,3859.6,0.001]
[1760760875078,7.01257151,3860.4,3859.9,0.4277]
[1760760875248,7.01257151,3860.4,3859.6,0.001]
[1760760875443,7.01257151,3860.4,3859.7,0.4277]
[1760760875648,7.47297151,3860.4,3859.7,0.4277]
[1760760876386,7.47297151,3860.4,3859.6,0.001]
[1760760876387,7.01257151,3860.4,3860.1,0.0557]
[1760760876985,7.01257151,3860.4,3860.1,0.4834]
[1760760877848,7.01257151,3860.4,3860.3,0.4287]
[1760760878243,7.01257151,3860.4,3859.0,2.4226276]
[1760760878704,4.42216638,3860.4,3859.2,2.59120921]
[1760760879478,4.377,3860.4,3859.3,2.59114166]
[1760760879669,4.377,3860.4,3859.2,2.59119312]
[1760760880380,4.377,3860.4,3859.3,0.0184]
[1760760882278,2.649,3860.4,3859.3,0.0184]
[1760760882490,2.649,3860.4,3859.4,2.59106711]
[1760760882881,2.649,3860.4,3859.5,0.0184]
[1760760883676,0.04515578,3860.2,3859.5,0.0184]
[1760760883997,2.648,3860.1,3859.5,0.0184]
[1760760885393,0.04515578,3860.2,3859.7,1.728]
[1760760885563,2.648,3860.1,3859.7,2.59087493]
[1760760885893,2.648,3860.1,3859.9,2.5907153]
[1760760886080,2.648,3860.1,3860.0,0.0184]
[1760760886894,2.648,3860.1,3860.0,2.60907357]
[1760760888274,2.648,3860.1,3860.0,2.73787357]
[1760760889792,2.648,3860.1,3860.0,0.1288]
[1760760892785,2.648,3860.1,3860.0,0.1298]
[1760760900469,3.1225,3860.1,3860.0,0.1298]
[1760760900883,3.1225,3860.1,3860.0,0.001]
[1760760901669,2.648,3860.1,3860.0,0.001]
[1760760902290,2.648,3860.1,3860.0,2.72047357]
[1760760903406,2.648,3860.1,3860.0,2.73887357]
[1760760904414,2.648,3860.1,3860.0,2.72047357]
[1760760906005,0.002,3860.4,3860.3,2.59047224]
[1760760906322,0.002,3860.4,3860.3,2.71927224]
[1760760907620,0.002,3860.4,3860.3,2.73767224]
[1760760908925,0.002,3860.4,3860.3,0.1288]
[1760760910812,0.4762,3860.4,3860.3,0.1288]
[1760760911122,0.002,3860.4,3860.3,0.1288]
[1760760911301,0.4762,3860.4,3860.3,0.1288]
[1760760912417,0.002,3860.4,3860.3,0.1288]
[1760760916246,0.4762,3860.4,3860.3,0.1288]
[1760760917714,0.002,3860.4,3860.3,0.1288]
[1760760918010,0.4762,3860.4,3860.3,0.1288]
[1760760918623,0.52134976,3860.4,3860.3,0.1288]
[1760760920404,0.52134976,3860.4,3860.1,0.1288]
[1760760920647,3.11181068,3860.4,3860.0,0.001]
[1760760920942,2.71938622,3860.2,3860.0,0.001]
[1760760921237,2.645,3860.1,3860.0,0.001]
[1760760921448,3.1192,3860.1,3860.0,0.001]
[1760760924931,2.645,3860.1,3860.0,0.001]
[1760760925140,3.1192,3860.1,3860.0,0.001]
[1760760930826,7.43780646,3860.1,3860.0,0.001]
[1760760931234,7.79396963,3860.1,3860.0,0.001]
[1760760931549,7.79396963,3860.1,3859.6,0.001]
[1760760931550,4.31887493,3859.7,3859.6,0.001]
[1760760931718,10.22303902,3859.7,3859.6,0.001]
[1760760931919,10.66803902,3859.7,3859.6,0.001]
[1760760934624,10.71320391,3859.7,3859.6,0.001]
[1760760935219,4.36403982,3859.7,3859.6,0.001]
[1760760935426,0.04516489,3859.7,3859.6,0.001]
[1760760935656,0.04516489,3859.7,3859.6,0.0204]
[1760760935953,2.645,3859.7,3859.6,0.1298]
[1760760941861,2.68915495,3860.2,3859.6,0.0204]
[1760760942223,2.68915495,3860.2,3859.6,0.001]
[1760760942441,3.13415495,3860.2,3859.6,0.001]
[1760760943542,2.68915495,3860.2,3859.6,0.001]
[1760760945437,3.13415495,3860.2,3859.6,0.001]
[1760760946296,2.68915495,3860.2,3859.6,0.001]
[1760760946445,0.445,3860.1,3859.6,0.001]
[1760760946838,0.445,3860.0,3859.6,0.001]
[1760760947444,2.68915495,3860.2,3859.6,0.001]
[1760760947677,2.69115495,3860.2,3859.6,0.001]
[1760760947974,0.445,3860.1,3859.6,0.001]
[1760760948381,0.445,3860.0,3859.6,0.001]
[1760760950997,2.69115495,3860.2,3859.6,0.001]
[1760760951154,0.669,3859.9,3859.6,0.001]
[1760760951357,2.644,3859.8,3859.6,0.001]
[1760760951660,2.7728,3859.8,3859.6,0.001]
[1760760951860,3.03587493,3859.7,3859.6,0.001]
[1760760952611,4.76387493,3859.7,3859.6,0.001]
[1760760953185,4.76387493,3859.7,3859.2,0.001]
[1760760953186,2.59114347,3859.3,3859.2,0.001]
[1760760953384,10.22230756,3859.3,3859.2,0.001]
[1760760953666,10.66730756,3859.3,3859.2,0.001]
[1760760955498,10.71247573,3859.3,3859.2,0.001]
[1760760957195,11.02755557,3859.3,3859.2,0.001]
[1760760958073,11.13151337,3859.3,3859.2,0.001]
[1760760958689,4.31927775,3859.1,3859.0,0.001]
[1760760958972,4.63435759,3859.1,3859.0,0.001]
[1760760959175,5.07935759,3859.1,3859.0,0.001]
[1760760960006,2.59141206,3858.9,3858.8,0.001]
[1760760960204,3.25916409,3857.8,3856.5,0.0234]
[1760760960406,2.644,3857.7,3856.7,0.0204]
[1760760960710,2.59237312,3857.5,3856.7,0.0204]
[1760760960884,2.644,3857.4,3856.7,0.0204]
[1760760963082,0.2165,3858.3,3856.7,0.0204]
[1760760963391,0.1288,3858.1,3857.4,0.1296]
[1760760963587,0.04517511,3858.0,3857.4,0.15]
[1760760964113,0.04517511,3858.0,3857.4,0.1296]
[1760760967017,0.04517511,3858.0,3857.4,0.1306]
[1760760974086,0.48657511,3858.0,3857.4,0.1306]
[1760760974293,2.59213049,3857.9,3857.4,0.1306]
[1760760974493,2.59235255,3857.5,3857.4,0.001]
[1760760974691,5.23635255,3857.5,3857.4,0.001]
[1760760974900,5.67775255,3857.5,3857.4,0.001]
[1760760975720,7.40575255,3857.5,3857.4,0.001]
[1760760978013,7.45094195,3857.5,3857.4,0.001]
[1760760978922,4.4171894,3857.5,3857.4,0.001]